{"text_format":"2","workbook":"xlsx","n_sheets":1,"sheets":["Informe 5"],"not_rendered":{"charts":0,"images":0,"macros":0,"external_links":72,"defined_names":4310,"comments":0,"pivot_tables":0},"unopened":[],"bounds":{"document_bytes":16777216,"sheet_cells":100000,"run_cost":"one","rows_first":2000,"rows_last":500,"rows_between":2000,"halvings":0,"cell_chars":16384,"cell_head_chars":4096},"cells_cut":0,"cells_raw":0,"read":"whole","date_system":"1900"}

{"sheet":"Informe 5","index":0,"n_rows":72,"n_cols":10,"rows_kept":72,"cut":false,"hidden":false,"merged":[[2,0,2,5]]}
["ENTEL PERU S.A.-2018-5 INGRESOS POR CATEGORÍA-21062019"]
[]
["INFORME 5: INGRESOS POR CATEGORÍA"]
[]
["Periodo de reporte: Al 31 de Diciembre 2018"]
[]
["Expresado en Miles Nuevos Soles","Cantidad de unidades","Ingresos","Ajuste por interconexión","Ingresos netos de interconexión","Número de nota",null,"unidad de medida"]
["TOTAL DE INGRESOS OPERATIVOS",null,{"$f":"SUM(C9:C70)","v":2470543145.4100003},{"$f":"SUM(D9:D70)","v":210007382.63999999},{"$f":"+C8-D8","v":2260535762.7700005}," ",null," "]
["Instalación Telefonía Fija de Abonado Urbano",null,null,0,{"$f":"+C9-D9","v":0}]
["Renta Telefonía Fija de Abonado Urbano",null,null,0,{"$f":"+C10-D10","v":0}]
["Llamadas locales Telefonía Fija de Abonado Urbano (DD)",13787740.199999999,{"$f":"VLOOKUP(A11,[71]HT!$D$218:$E$243,2,0)","v":914792.68},0,914792.68,null,null,"Minutos reales"]
["Llamadas fijo-móvil (DD)",null,null,0,0,null,null,"minutos"]
["Llamadas fijo-móvil (tarjetas)",null,null,0,0,null,null,"minutos"]
["Llamadas locales Telefonía Fija de Abonado Urbano (Tarjetas)",null,null,0,0,null,null,"minutos"]
["Llamadas LDN Telefonía Fija de Abonado Urbano (DD)",762700.01333333331,{"$f":"VLOOKUP(A15,[71]HT!$D$218:$E$243,2,0)","v":238712.31999999995},0,238712.31999999995,null,null,"Minutos reales"]
["Llamadas LDI Telefonía Fija de Abonado Urbano (DD)",null,null,0,0]
["Llamadas LDN Telefonía Fija de Abonado Urbano (Tarjetas)",null,null,0,0]
["Llamadas LDI Telefonía Fija de Abonado Urbano (Tarjetas)",null,null,0,0]
["Llamadas locales Telefonía Fija de TUP Urbano (Monedas)",null,null,0,0]
["Llamadas TUP-móvil (Monedas)",null,null,0,0]
["Llamadas locales Telefonía Fija de TUP Urbano (Tarjetas)",null,null,0,0]
["Llamadas TUP-móvil (Tarjetas)",null,null,0,0]
["Llamadas LDN Telefonía Fija de TUP Urbano (Monedas)",null,null,0,0]
["Llamadas LDI Telefonía Fija de TUP Urbano (Monedas)",null,null,0,0]
["Llamadas LDN Telefonía Fija de TUP Urbano (Tarjetas)",null,null,0,0]
["Llamadas LDI Telefonía Fija de TUP Urbano (Tarjetas)",null,null,0,0]
["Acceso Instalación Telefonía Fija de Abonado Rural",null,null,0,0]
["Acceso Renta Telefonía Fija de Abonado Rura",null,null,0,0]
["Llamadas locales Telefonía Fija de Abonado Rural (DD)",null,null,0,0]
["Llamadas fijo-móvil desde Abonado Rural (DD)",null,null,0,0]
["Llamadas locales Telefonía Fija de Abonado Rural (Tarjetas)",null,null,0,0]
["Llamadas fijo-móvil desde Abonado Rural (Tarjetas)",null,null,0,0]
["Llamadas LDN Telefonía Fija de Abonado Rural (DD)",null,null,0,0]
["Llamadas LDI Telefonía Fija de Abonado Rural (DD)",null,null,0,0]
["Llamadas LDN Telefonía Fija de Abonado Rural (Tarjetas)",null,null,0,0]
["Llamadas LDI Telefonía Fija de Abonado Rural (Tarjetas)",null,null,0,0]
["Llamadas locales Telefonía Fija de TUP Rural (Tarjetas y monedas)",null,null,0,0]
["Llamadas TUP-móvil (Tarjetas y monedas)",null,null,0,0]
["Llamadas LDN Telefonía Fija de TUP Rural (Tarjetas y monedas)",null,null,0,0]
["Llamadas LDI Telefonía Fija de TUP Rural (Tarjetas y monedas)",null,null,0,0]
["Instalación Televisión de Paga",null,null,0,0]
["Renta Básica Televisión de Paga",null,null,0,0]
["Servicio de canales adicionales Televisión de Paga",null,null,0,0]
["Instalación Internet Fijo",null,null,0,0]
["Prestación de servicios Internet Fijo",199867,{"$f":"VLOOKUP(A45,[71]HT!$D$218:$E$243,2,0)","v":74820569.480000004},0,74820569.480000004,null,null,"abonados BAFI"]
["Renta mensual por Voz Móvil",3751034,{"$f":"+'[72]Informe-5 2018'!$C$46","v":166753686.29000002},0,166753686.29000002,null,null,"abonados voz postpago"]
["Llamadas Locales de Voz Móvil por Telefonía Móvil",5170165658,{"$f":"VLOOKUP(A47,[71]HT!$D$218:$E$243,2,0)","v":153882642.07999998},0,153882642.07999998,null,null,"llamadas"]
["Llamadas LD de Voz Móvil por Telefonía Móvil",27289213,{"$f":"VLOOKUP(A48,[71]HT!$D$218:$E$243,2,0)","v":444970.76000000007},0,444970.76000000007,null,null,"llamadas"]
["Mensajes de texto Telefonía Móvil",1767097110,{"$f":"VLOOKUP(A49,[71]HT!$D$218:$E$243,2,0)","v":89566508},0,89566508,null,null,"SMS"]
["Roaming Internacional por Telefonía Móvil",1422202,{"$f":"VLOOKUP(A50,[71]HT!$D$218:$E$243,2,0)","v":17041623.510000002},0,17041623.510000002,null,null,"minutos"]
["Renta mensual de Internet Móvil por Telefonía Móvil",3927583,{"$f":"VLOOKUP(A51,[71]HT!$D$218:$E$243,2,0)","v":765635672.40999997},0,765635672.40999997,null,null,"abonados int movil postpago"]
["Consumo no incluido en la renta mensual Internet Móvil",25609279582,{"$f":"VLOOKUP(A52,[71]HT!$D$218:$E$243,2,0)","v":89192226.180000007},0,89192226.180000007,null,null,"Megas"]
["Servicios Suplementarios","ND",{"$f":"VLOOKUP(A53,[71]HT!$D$218:$E$243,2,0)","v":40966579.390000001},0,40966579.390000001]
["Servicios de valor añadido (no incluye Internet)","ND",{"$f":"VLOOKUP(A54,[71]HT!$D$218:$E$243,2,0)","v":8868899.2799999975},0,8868899.2799999975]
["Suministro de Equipos",9227687,{"$f":"+'[72]Informe-5 2018'!$C$55","v":810024303.71000004},0,810024303.71000004,null,null,"Unidades equipos y chips, incluye reposiciones y alquilados"]
["Instalación para otros operadores",null,1632985,0,1632985]
["Instalación para clientes privados",null,98016,0,98016]
["Alquiler y Transmisión a otros operadores",180341,4706495,0,4706495,null,null,"Mbps"]
["Alquiler y Transmisión a clientes privados",1758,600558.09,0,600558.09,null,null,"Mbps"]
["Provisión de acceso a Empresas Emisoras de Dinero Electrónico (EEDE)",{"$f":"+[71]unidades!B15","v":1716728},{"$f":"VLOOKUP(A60,[71]HT!$D$218:$E$243,2,0)","v":337470.71},0,337470.71,null,null,"transacciones USSD"]
["Transporte Conmutado Local",null,null,0,0]
["Transporte Conmutado de Larga Distancia Naciona",null,null,0,0]
["Acceso a los Teléfonos de Uso Público",null,null,0,0]
["Terminación de Llamadas en la Red de Servicio Móvil",7933568718.1810999,{"$f":"VLOOKUP(A64,[71]HT!$D$218:$E$243,2,0)","v":189038720.53999999},209336823.88479415,{"$f":"+C64-D64","v":-20298103.344794154},null,null,"Minutos reales",null," "]
["Terminación de Llamadas en la Red del Servicio de Telefonía Fija Local",37793243,{"$f":"VLOOKUP(A65,[71]HT!$D$218:$E$243,2,0)","v":605538.80000000005},670558.75520585349,-65019.955205853446,null,null,"Minutos reales",null," "]
["Facturación y Recaudación",178091,{"$f":"VLOOKUP(A66,[71]HT!$D$218:$E$243,2,0)","v":2342.66},null,2342.66,null,null,"Recibos"]
["Adecuación de Red",704,{"$f":"VLOOKUP(A67,[71]HT!$D$218:$E$243,2,0)","v":4263815.6900000004},null,4263815.6900000004," ",null,"# enlaces"]
["Acceso a la Plataforma de Pago",295424.58883333334,{"$f":"VLOOKUP(A68,[71]HT!$D$218:$E$243,2,0)","v":12405.830000000002},null,12405.830000000002," ",null,"Minutos reales"]
["Enlaces de Interconexión",24,{"$f":"VLOOKUP(A69,[71]HT!$D$218:$E$243,2,0)","v":104764.52000000002},null,104764.52000000002," ",null,"# enlaces de interconexión"," "]
["Otros",null,{"$f":"VLOOKUP(A70,[71]HT!$D$218:$E$243,2,0)","v":50788846.479999997},null,50788846.479999997]
[]
[null,null,0]